bitfinex-derivatives/quotes_SOLF0:USTF0_20250731
["timestamp","ask_amount","ask_price","bid_price","bid_amount"]
[1753990837590,3.29,175.76,175.67,5.693]
[1753990837896,5.6917,175.72,175.67,5.693]
[1753990838200,3.29,175.71,175.68,3.26]
[1753990838597,3.29,175.7,175.68,3.26]
[1753990840500,3.29,175.76,175.69,3.26]
[1753990840695,3.29,175.76,175.7,7.32353075]
[1753990840997,107.08,175.77,175.72,7.32353075]
[1753990841205,3.29,175.74,175.72,10.58353075]
[1753990841400,5.6911,175.73,175.72,7.32353075]
[1753990842104,5.6915,175.72,175.7,10.58353075]
[1753990843405,3.29,175.76,175.67,3.26]
[1753990843807,3.29,175.69,175.67,3.26]
[1753990844707,5.6931,175.67,175.65,10.58353075]
[1753990844902,3.29,175.68,175.65,7.32353075]
[1753990845109,3.29,175.65,175.62,10.58353075]
[1753990845405,3.29,175.7,175.62,10.58353075]
[1753990845601,5.6943,175.64,175.62,10.58353075]
[1753990845798,8.9843,175.64,175.62,10.58353075]
[1753990846710,3.29,175.72,175.63,3.26]
[1753990846905,3.29,175.71,175.63,3.26]
[1753990847705,8.9821,175.7,175.67,5.693]
[1753990847905,8.9821,175.7,175.68,3.26]
[1753990848113,3.29,175.7,175.68,3.26]
[1753990848812,3.29,175.68,175.66,10.58353075]
[1753990849213,7.32353075,175.76,175.64,7.32353075]
[1753990849214,3.29,175.73,175.64,7.32353075]
[1753990849411,7.32353075,175.72,175.63,3.26]
[1753990849712,7.32353075,175.72,175.62,7.32353075]
[1753990849713,5.6935,175.66,175.62,7.32353075]
[1753990849909,3.29,175.65,175.62,10.58353075]
[1753990850310,7.32353075,175.72,175.64,3.26]
[1753990850311,3.29,175.67,175.64,3.26]
[1753990850506,3.29,175.67,175.65,3.26]
[1753990850703,5.6919,175.71,175.66,10.58353075]
[1753990850904,5.6919,175.71,175.59,6.22884714]
[1753990850905,8.9819,175.71,175.68,10.58353075]
[1753990851105,3.29,175.71,175.69,3.26]
[1753990851511,3.29,175.7,175.68,7.32353075]
[1753990851716,3.29,175.7,175.68,10.58353075]
[1753990852108,3.29,175.7,175.68,16.27613075]
[1753990852715,3.29,175.72,175.69,8.9524]
[1753990853012,107.08,175.77,175.68,7.32353075]
[1753990853309,3.29,175.68,175.66,7.32353075]
[1753990853511,114.40353075,175.77,175.66,7.32353075]
[1753990853712,114.40353075,175.77,175.67,3.26]
[1753990853713,3.29,175.69,175.67,3.26]
[1753990855217,8.9825,175.69,175.67,3.26]
[1753990855424,3.29,175.76,175.68,7.32353075]
[1753990855612,3.29,175.76,175.68,10.58353075]
[1753990856212,5.6914,175.73,175.68,10.58353075]
[1753990856413,3.29,175.72,175.68,7.32353075]
[1753990856613,107.08,175.77,175.71,3.26]
[1753990856821,8.9811,175.73,175.71,3.26]
[1753990857214,3.29,175.73,175.72,3.26]
[1753990857419,3.29,175.73,175.71,5.6916]
[1753990857717,3.29,175.73,175.71,8.9516]
[1753990857918,5.691,175.74,175.71,3.26]
[1753990858218,3.29,175.72,175.7,16.01553075]
[1753990858413,3.29,175.72,175.7,10.32353075]
[1753990859422,3.29,175.72,175.7,16.01533075]
[1753990860120,3.29,175.72,175.7,10.32353075]
[1753990860318,7.32353075,175.75,175.64,7.32353075]
[1753990860514,3.11,175.72,175.62,10.32353075]
[1753990860715,5.6943,175.64,175.6,7.32353075]
[1753990860912,3.11,175.68,175.58,10.32353075]
[1753990861115,3.11,175.66,175.58,3.0]
[1753990861322,3.11,175.63,175.59,3.0]
[1753990861621,3.11,175.63,175.6,3.0]
[1753990861823,8.8046,175.63,175.6,3.0]
[1753990862117,3.11,175.62,175.6,3.0]
[1753990862914,3.11,175.62,175.6,8.6951]
[1753990863220,3.11,175.67,175.59,3.0]
[1753990863421,3.11,175.67,175.63,3.0]
[1753990863720,3.11,175.71,175.62,10.32353075]
[1753990863914,5.6935,175.66,175.62,16.01823075]
[1753990864116,3.11,175.65,175.62,8.6947]
[1753990864417,3.11,175.65,175.62,3.0]
[1753990864619,3.11,175.65,175.62,8.6944]
[1753990864921,3.11,175.65,175.63,7.32353075]
[1753990865217,3.11,175.65,175.63,10.32353075]
[1753990865623,7.32353075,175.73,175.64,3.0]
[1753990865818,3.11,175.72,175.63,13.01763075]
[1753990866518,3.11,175.66,175.63,16.01763075]
[1753990866820,3.11,175.66,175.63,10.32353075]
[1753990867023,3.11,175.65,175.63,10.32353075]
[1753990867217,3.11,175.65,175.64,3.0]
[1753990867416,3.11,175.66,175.64,3.0]
[1753990867617,3.11,175.7,175.61,10.32353075]
[1753990867820,3.11,175.7,175.63,10.32353075]
[1753990868022,3.11,175.69,175.66,3.0]
[1753990868218,3.11,175.69,175.67,3.0]
[1753990868522,8.8024,175.69,175.67,3.0]
[1753990868717,5.6924,175.69,175.65,7.32353075]
[1753990868914,7.32353075,175.76,175.65,7.32353075]
[1753990869224,112.48593619,175.77,175.63,10.32353075]
[1753990869225,3.11,175.73,175.63,10.32353075]
[1753990869522,3.11,175.73,175.65,7.32353075]
[1753990869722,3.11,175.73,175.66,3.0]
[1753990870019,3.11,175.73,175.67,7.32353075]
[1753990870225,5.6921,175.71,175.67,7.32353075]
[1753990870416,3.11,175.69,175.67,10.32353075]
[1753990870616,5.6923,175.7,175.67,7.32353075]
[1753990870823,3.11,175.69,175.67,10.32353075]
[1753990871120,3.11,175.68,175.67,10.32353075]
[1753990871517,3.11,175.68,175.67,7.32353075]
[1753990872015,5.6921,175.7,175.67,7.32353075]
[1753990872223,3.11,175.69,175.67,10.32353075]
[1753990872525,3.11,175.76,175.68,3.0]
[1753990872720,3.11,175.76,175.62,6.22884714]
[1753990872721,8.8004,175.76,175.71,5.6915]
[1753990872924,8.8004,175.76,175.63,6.22884714]
[1753990872925,3.11,175.75,175.73,10.32353075]
[1753990873123,3.11,175.74,175.72,7.32353075]
[1753990873713,3.11,175.77,175.72,10.32353075]
[1753990873915,3.11,175.82,175.75,7.32353075]
[1753990874121,5.6897,175.78,175.75,7.32353075]
[1753990874323,3.11,175.77,175.75,10.32353075]
[1753990874819,114.16353075,175.83,175.73,10.32353075]
[1753990875027,3.11,175.75,175.73,10.32353075]
[1753990876227,3.11,175.82,175.73,7.32353075]
[1753990877925,3.11,175.82,175.73,10.32353075]
[1753990878123,3.11,175.82,175.75,7.32353075]
[1753990878324,5.6901,175.76,175.75,10.32353075]
[1753990878528,8.8001,175.76,175.75,7.32353075]
[1753990878725,3.11,175.78,175.69,7.32353075]
[1753990879035,4.65517476,175.83,175.68,3.0]
[1753990879036,3.11,175.7,175.68,3.0]
[1753990879523,7.32353075,175.79,175.69,7.32353075]
[1753990879728,3.11,175.78,175.72,3.0]
[1753990880027,5.691,175.74,175.72,3.0]
[1753990880226,3.11,175.73,175.71,7.32353075]
[1753990880427,3.11,175.76,175.67,7.32353075]
[1753990880619,3.11,175.76,175.66,3.0]
[1753990880620,3.11,175.74,175.66,3.0]
[1753990881219,5.6928,175.68,175.66,3.0]
[1753990882036,3.11,175.7,175.64,5.6939]
[1753990882037,7.32353075,175.73,175.64,3.0]
[1753990882245,28.4784,175.8,175.62,3.0]
[1753990882246,3.11,175.68,175.62,3.0]
[1753990882632,3.11,175.68,175.6,3.0]
[1753990882935,7.32353075,175.67,175.57,10.32353272]
[1753990883137,3.11,175.66,175.57,10.32353272]
[1753990883342,3.11,175.66,175.58,3.0]
[1753990883537,5.6942,175.64,175.58,3.0]
[1753990883839,3.11,175.66,175.58,3.0]
[1753990884242,5.6949,175.62,175.58,3.0]
[1753990884536,3.11,175.66,175.62,3.0]
[1753990884737,7.32353075,175.71,175.61,7.32353075]
[1753990884738,5.6943,175.64,175.61,7.32353075]
[1753990885043,3.11,175.64,175.62,3.0]
[1753990885437,3.11,175.64,175.61,7.32353075]
[1753990885438,8.8043,175.64,175.61,7.32353075]
[1753990885638,8.8043,175.64,175.63,3.0]
[1753990886038,3.11,175.62,175.58,7.32353075]
[1753990886240,3.11,175.61,175.59,3.0]
[1753990886434,7.32353075,175.67,175.59,3.0]
[1753990886645,16.04526094,175.72,175.57,3.00000197]
[1753990886646,3.11,175.59,175.57,3.00000197]
[1753990887145,7.32353075,175.65,175.57,3.00000197]
[1753990887450,3.11,175.64,175.57,1.97e-06]
[1753990888943,3.11,175.64,175.57,3.21000197]
[1753990889442,8.7155,175.6,175.57,3.21000197]
[1753990889645,8.7155,175.6,175.57,1.97e-06]
[1753990889850,8.7155,175.6,175.58,3.21]
[1753990890048,3.02,175.58,175.57,1.97e-06]
[1753990890242,3.02,175.6,175.57,3.21000197]
[1753990890443,8.7154,175.6,175.58,3.21]
[1753990891347,8.7157,175.59,175.57,3.21000197]
[1753990891539,3.02,175.59,175.57,8.90630197]
[1753990891947,3.02,175.6,175.58,3.21]
[1753990893746,5.6957,175.59,175.58,3.21]
[1753990893949,3.02,175.6,175.58,3.21]
[1753990894152,3.02,175.65,175.59,3.21]
[1753990894444,3.02,175.65,175.62,3.21]
[1753990894751,3.02,175.64,175.62,3.21]
[1753990894947,5.6942,175.64,175.62,3.21]
[1753990895148,3.02,175.63,175.62,3.21]
[1753990895350,3.02,175.63,175.6,10.53353075]
[1753990895649,3.02,175.63,175.61,3.21]
[1753990896245,8.7144,175.63,175.61,3.21]
[1753990896447,3.02,175.63,175.6,13.01883075]
[1753990896648,7.32353075,175.7,175.62,3.21]
[1753990896649,3.02,175.69,175.62,3.21]
[1753990896842,8.7139,175.65,175.63,3.21]
[1753990897448,7.32353075,175.72,175.64,3.21]
[1753990897655,3.02,175.67,175.65,3.21]
[1753990897848,8.7131,175.67,175.66,3.21]
[1753990898546,3.02,175.73,175.64,10.53353075]
[1753990898955,5.6934,175.66,175.64,10.53353075]
[1753990899148,3.02,175.65,175.64,10.53353075]
[1753990899349,3.02,175.65,175.64,7.32353075]
[1753990899947,3.02,175.65,175.64,10.53353075]
[1753990900148,5.693,175.68,175.64,7.32353075]
[1753990900455,3.02,175.67,175.65,3.21]
[1753990900844,3.02,175.73,175.64,7.32353075]
[1753990901249,3.02,175.73,175.64,10.53353075]
[1753990901652,5.693,175.68,175.64,10.53353075]
[1753990901859,3.02,175.67,175.65,3.21]
[1753990902353,8.7131,175.67,175.65,3.21]
[1753990902556,3.02,175.73,175.65,3.21]
[1753990902751,3.02,175.73,175.64,7.32353075]
[1753990903147,3.02,175.69,175.6,7.32353075]
[1753990903351,3.02,175.69,175.61,3.21]
[1753990903549,3.02,175.69,175.6,7.32353075]
[1753990903749,5.6947,175.63,175.6,7.32353075]
[1753990903950,3.02,175.62,175.6,10.53353075]
[1753990904252,3.02,175.62,175.61,3.21]
[1753990904443,5.6947,175.63,175.61,3.21]
[1753990904843,3.02,175.63,175.6,13.01883075]
[1753990905056,3.02,175.65,175.6,7.32353075]
[1753990905253,3.02,175.69,175.62,10.53353075]
[1753990905854,3.02,175.69,175.63,3.21]
[1753990906053,8.7136,175.66,175.64,3.21]
[1753990906452,8.713,175.68,175.65,3.21]
[1753990906652,106.86,175.74,175.67,3.21]
[1753990906653,3.02,175.71,175.67,3.21]
[1753990906854,106.86,175.74,175.7,3.21]
[1753990907049,3.02,175.71,175.66,10.53353075]
[1753990907652,3.02,175.68,175.66,10.53353075]
[1753990908063,5.6934,175.66,175.64,7.32353075]
[1753990908355,5.6934,175.66,175.64,10.53353075]
[1753990908555,8.7134,175.66,175.64,10.53353075]
[1753990908758,3.02,175.66,175.64,7.32353075]
[1753990908960,3.02,175.66,175.65,3.21]
[1753990909157,106.86,175.74,175.64,7.32353075]
[1753990909349,5.6928,175.68,175.65,3.21]
[1753990909554,5.6928,175.68,175.66,3.21]
[1753990909854,8.7132,175.67,175.65,3.21]
[1753990910060,3.02,175.67,175.65,3.21]
[1753990910450,10.34353075,175.73,175.64,7.32353075]
[1753990910657,3.02,175.7,175.62,3.21]
[1753990911662,8.7139,175.65,175.63,3.21]
[1753990912554,3.02,175.68,175.66,3.21]
[1753990912757,3.02,175.68,175.67,3.21]
[1753990912958,5.6929,175.68,175.67,3.21]
[1753990913156,3.02,175.67,175.65,3.21]
[1753990913660,3.02,175.67,175.64,10.53353075]
[1753990913863,3.02,175.69,175.66,3.21]
[1753990914056,3.02,175.69,175.67,3.21]
[1753990914256,8.7126,175.69,175.67,3.21]
[1753990914653,118.2418,175.74,175.67,3.21]
[1753990914858,3.02,175.67,175.64,7.32353075]
[1753990915055,3.02,175.68,175.58,10.53353075]
[1753990915254,3.02,175.68,175.6,7.32353075]
[1753990915455,3.02,175.68,175.59,3.21]
[1753990915456,3.02,175.68,175.62,10.53353075]
[1753990915659,3.02,175.68,175.63,3.21]
[1753990915856,5.694,175.64,175.63,3.21]
[1753990916059,3.02,175.7,175.63,3.21]
[1753990916267,3.02,175.7,175.64,7.32353075]
[1753990916559,3.02,175.67,175.66,3.21]
[1753990916760,3.02,175.67,175.64,7.32353075]
[1753990916957,3.02,175.67,175.64,13.01743075]
[1753990917261,3.02,175.7,175.68,3.21]
[1753990917463,3.02,175.7,175.69,3.21]
[1753990917665,3.02,175.71,175.69,3.21]
[1753990917965,3.02,175.8,175.71,3.21]
[1753990918266,8.8197,175.78,175.75,3.25]
[1753990918564,8.819,175.8,175.77,3.25]
[1753990918764,3.13,175.8,175.77,3.25]
[1753990918963,3.13,175.79,175.77,3.25]
[1753990919259,0.99046535,175.83,175.76,7.32353075]
[1753990919564,3.13,175.79,175.77,3.25]
[1753990919762,8.8198,175.78,175.76,7.32353075]
[1753990919962,8.8198,175.78,175.76,10.57353075]
[1753990920157,3.13,175.83,175.72,10.57353075]
[1753990920359,3.13,175.81,175.7,10.57353075]
[1753990920559,3.13,175.79,175.7,10.57353075]
[1753990920860,7.32353075,175.8,175.7,10.57353075]
[1753990920861,8.8216,175.72,175.7,10.57353075]
[1753990921059,3.13,175.79,175.7,10.57353075]
[1753990921254,5.6914,175.73,175.7,10.57353075]
[1753990921456,3.13,175.71,175.69,3.25]
[1753990921855,3.13,175.7,175.68,10.57353075]
[1753990922059,7.32353075,175.78,175.68,10.57353075]
[1753990922060,3.13,175.77,175.68,10.57353075]
[1753990922957,7.32353075,175.78,175.68,7.32353075]
[1753990922958,5.692,175.71,175.68,7.32353075]
[1753990923164,3.13,175.73,175.7,3.25]
[1753990923563,5.6917,175.72,175.7,3.25]
[1753990923759,3.13,175.72,175.7,3.25]
[1753990924766,5.6915,175.72,175.7,3.25]
[1753990925058,3.13,175.71,175.68,7.32353075]
[1753990925268,8.8219,175.71,175.69,3.25]
[1753990925472,3.13,175.71,175.69,3.25]
[1753990925665,3.13,175.75,175.67,3.25]
[1753990925874,8.8218,175.71,175.68,3.25]
[1753990926172,8.8218,175.71,175.66,7.32353075]
[1753990926366,8.8218,175.71,175.69,3.25]
[1753990926566,5.6918,175.71,175.69,3.25]
[1753990927072,5.6921,175.7,175.69,3.25]
[1753990927271,8.8221,175.7,175.69,3.25]
[1753990928371,5.6924,175.69,175.67,3.25]
[1753990928571,3.13,175.69,175.67,3.25]
[1753990929072,3.13,175.73,175.65,3.25]
[1753990929667,5.6923,175.7,175.65,8.9435]
[1753990929871,5.6923,175.7,175.67,3.25]
[1753990930166,8.8223,175.7,175.68,3.25]
[1753990930373,3.13,175.68,175.66,10.57353075]
[1753990931171,3.13,175.68,175.67,3.25]
[1753990931471,3.13,175.67,175.65,3.25]
[1753990931666,3.13,175.66,175.64,7.32353075]
[1753990931874,3.13,175.65,175.62,7.32353075]
[1753990932073,3.13,175.71,175.64,3.25]
[1753990932274,8.8231,175.67,175.64,3.25]
[1753990932575,3.13,175.65,175.64,3.25]
[1753990932772,3.13,175.71,175.62,10.57353075]
[1753990932972,3.13,175.71,175.63,3.25]
[1753990933164,5.6933,175.67,175.63,8.9442]
[1753990933361,3.13,175.66,175.64,3.25]
[1753990935275,3.13,175.76,175.66,3.25]
[1753990935463,3.13,175.78,175.75,10.57353075]
[1753990935868,3.13,175.8,175.77,10.57353075]
[1753990936171,390.99385517,175.86,175.67,17.61484714]
[1753990936366,3.13,175.78,175.76,7.32353075]
[1753990936774,3.13,175.81,175.72,10.57353075]
[1753990936974,3.13,175.81,175.72,7.32353075]
[1753990937277,3.13,175.81,175.74,7.32353075]
[1753990937870,3.13,175.76,175.74,7.32353075]
[1753990938070,3.13,175.76,175.74,10.57353075]
[1753990939478,8.8202,175.76,175.74,10.57353075]
[1753990939677,3.13,175.76,175.74,10.57353075]
[1753990940475,3.13,175.75,175.74,7.32353075]
[1753990940981,3.13,175.84,175.74,7.32353075]
[1753990941175,3.13,175.84,175.78,7.32353075]
[1753990941374,3.13,175.87,175.8,7.32353075]
[1753990941679,106.76,175.89,175.82,7.32353075]
[1753990941876,3.13,175.88,175.82,10.57353075]
[1753990942175,8.8171,175.86,175.82,13.01143075]
[1753990942376,3.13,175.86,175.84,10.57353075]
[1753990942778,3.13,175.85,175.84,7.32353075]
[1753990943380,7.32353075,175.94,175.85,3.25]
[1753990943381,3.13,175.88,175.85,3.25]
[1753990943673,3.13,175.92,175.88,3.25]
[1753990943877,4.65503035,176.0,175.9,10.57353075]
[1753990943878,3.13,175.99,175.9,10.57353075]
[1753990944274,8.8147,175.93,175.9,10.57353075]
[1753990944470,3.13,175.93,175.91,3.25]
[1753990944781,8.31308076,176.0,175.92,3.25]
[1753990944782,3.13,175.95,175.92,3.25]
[1753990944980,3.13,175.99,175.9,7.32353075]
[1753990945179,8.8142,175.95,175.91,3.25]
[1753990945486,3.13,175.95,175.92,10.57353075]
[1753990945782,8.814,175.95,175.92,10.57353075]
[1753990945978,3.13,175.95,175.93,3.25]
[1753990946879,3.13,175.99,175.94,10.57353075]
[1753990947083,3.13,176.03,175.96,7.32353075]
[1753990948272,5.6821,176.01,175.96,7.32353075]
[1753990948480,3.13,176.03,175.96,7.32353075]
[1753990949187,3.13,176.03,175.96,10.48353075]
[1753990949479,107.66922653,176.05,175.96,10.48353075]
[1753990949480,3.31,176.0,175.97,3.16]
[1753990949688,3.31,176.05,175.99,3.16]
[1753990949876,3.31,176.04,176.01,3.16]
[1753990950075,3.31,176.05,175.98,10.48353075]
[1753990950381,3.31,176.09,176.01,3.16]
[1753990950781,3.31,176.09,176.0,7.32353075]
[1753990950983,3.31,176.09,175.89,7.32353075]
[1753990950984,3.31,176.0,175.98,10.48353075]
[1753990951283,3.31,175.99,175.97,3.16]
[1753990952184,3.31,176.05,175.98,3.16]
[1753990952681,3.31,176.05,175.96,10.48353075]
[1753990953187,3.31,176.05,175.87,106.64]
[1753990953188,3.31,175.98,175.92,7.32353075]
[1753990953391,3.31,175.98,175.92,10.48353075]
[1753990953680,3.31,175.98,175.94,3.16]
[1753990953887,3.31,176.02,175.96,3.16]
[1753990954189,3.31,176.02,175.97,10.48353075]
[1753990954382,3.31,176.06,175.97,10.48353075]
[1753990955184,3.31,175.99,175.97,10.48353075]
[1753990955383,7.32353075,176.03,175.93,10.48353075]
[1753990955686,3.31,176.02,175.93,10.48353075]
[1753990956890,5.6834,175.97,175.93,13.00813075]
[1753990957183,3.31,175.97,175.94,3.16]
[1753990957388,3.31,176.0,175.91,10.48353075]
[1753990957789,3.31,176.0,175.93,7.32353075]
[1753990957989,3.31,176.0,175.94,3.16]
[1753990958787,3.31,176.0,175.92,3.16]
[1753990958983,3.31,175.98,175.92,3.16]
[1753990959190,3.31,175.94,175.91,3.16]
[1753990959386,3.31,175.94,175.92,3.16]
[1753990959685,3.31,175.93,175.89,13.00943075]
[1753990959892,3.31,175.93,175.91,3.16]
[1753990960391,8.9947,175.93,175.91,3.16]
[1753990960896,8.995,175.92,175.89,10.48353075]
[1753990961185,3.31,175.91,175.87,10.48353075]
[1753990961492,8.9955,175.91,175.88,3.16]
[1753990961691,3.31,175.95,175.85,7.32353075]
[1753990961990,3.31,175.95,175.86,3.16]
[1753990962182,3.31,175.95,175.87,7.32353075]
[1753990962388,3.31,175.95,175.88,3.16]
[1753990962784,3.31,175.95,175.89,7.32353075]
[1753990962985,3.31,175.95,175.91,7.32353075]
[1753990963187,3.31,175.95,175.93,3.16]
[1753990963386,3.31,175.94,175.91,10.48353075]
[1753990963585,3.31,176.01,175.93,10.48353075]
[1753990963789,3.31,176.01,175.93,16.16813075]
[1753990964289,3.31,176.01,175.93,10.48353075]
[1753990964490,3.31,176.01,175.93,16.16813075]
[1753990964882,3.31,176.01,175.93,10.48353075]
[1753990965091,8.9936,175.97,175.94,3.16]
[1753990965784,3.31,175.97,175.94,3.16]
[1753990966187,7.32353075,176.03,175.94,3.16]
[1753990966386,3.31,175.96,175.94,3.16]
[1753990967593,382.08,176.04,175.94,5.6842]
[1753990967790,389.40353075,176.04,175.94,8.8442]
[1753990967993,3.31,176.03,175.94,8.8442]
[1753990968192,3.31,176.03,175.95,10.48353075]
[1753990968402,3.31,176.03,175.97,7.32353075]
[1753990968687,8.9925,176.0,175.97,10.48353075]
[1753990968992,10.63353075,176.03,175.93,10.48353075]
[1753990969198,3.31,176.02,175.93,10.48353075]
[1753990969490,3.31,175.97,175.95,10.48353075]
[1753990969690,3.31,175.97,175.96,3.16]
[1753990970480,8.9927,175.99,175.96,3.16]
[1753990970686,8.9927,175.99,175.96,10.48353075]
[1753990970881,382.08,176.04,175.96,10.48353075]
[1753990971086,8.9933,175.98,175.96,10.48353075]
[1753990971487,3.31,175.98,175.96,10.48353075]
[1753990972492,382.08,176.04,175.96,7.32353075]
[1753990972694,382.08,176.04,175.99,3.16]
[1753990972893,382.08,176.04,175.98,7.32353075]
[1753990972894,8.9927,176.0,175.98,7.32353075]
[1753990973191,3.31,175.99,175.98,7.32353075]
[1753990973390,389.40353075,176.04,175.94,10.48353075]
[1753990973688,3.31,176.03,175.94,10.48353075]
[1753990973896,389.40353075,176.04,175.94,10.48353075]
[1753990973897,5.6834,175.97,175.94,3.16]
[1753990974194,3.31,175.96,175.94,3.16]
[1753990974391,8.9937,175.96,175.94,3.16]
[1753990976696,3.31,176.01,175.93,3.16]
[1753990977289,5.6839,175.96,175.93,3.16]
[1753990977491,8.9939,175.96,175.94,3.16]
[1753990977692,8.9939,175.96,175.93,7.32353075]
[1753990977693,5.6839,175.96,175.93,7.32353075]
[1753990977893,5.6839,175.96,175.95,3.16]
[1753990978598,8.7242,175.95,175.93,10.47353075]
[1753990978798,8.7242,175.95,175.91,13.00873075]
[1753990979092,3.04,175.95,175.94,3.15]
[1753990979887,5.6839,175.96,175.92,5.6849]
[1753990980095,3.04,175.97,175.96,3.15]
[1753990980493,3.04,175.96,175.95,3.15]
[1753990980694,3.04,175.95,175.85,10.47353075]
[1753990980890,3.04,175.92,175.85,3.15]
[1753990981095,7.32353075,175.91,175.83,3.15]
[1753990981297,3.04,175.9,175.83,10.47353075]
[1753990981598,3.04,175.91,175.86,3.15]
[1753990981797,106.54,175.96,175.88,3.15]
[1753990981989,3.04,175.95,175.89,7.32353075]
[1753990982300,3.04,175.93,175.91,3.15]
[1753990982695,3.04,175.95,175.87,3.15]
[1753990983291,8.7255,175.91,175.88,3.15]
[1753990983493,3.04,175.97,175.9,3.15]
[1753990983690,5.6841,175.95,175.91,7.32353075]
[1753990983891,3.04,175.97,175.91,16.15883075]
[1753990984096,3.04,175.97,175.91,13.00883075]
[1753990984296,5.6842,175.95,175.93,3.15]
[1753990984489,3.04,175.94,175.92,3.15]
[1753990984698,3.04,175.98,175.93,7.32353075]
[1753990984897,8.7239,175.96,175.93,10.47353075]
[1753990985103,8.7239,175.96,175.94,3.15]
[1753990985604,5.684,175.95,175.94,3.15]
[1753990985998,3.04,175.96,175.94,3.15]
[1753990986198,3.04,175.98,175.95,3.15]
[1753990986399,3.04,175.97,175.95,3.15]
[1753990986599,8.7234,175.97,175.95,3.15]
[1753990986796,111.20636634,176.03,175.95,7.32353075]
[1753990987001,3.04,176.02,175.98,3.15]
[1753990987198,3.04,175.99,175.97,7.32353075]
[1753990987403,3.04,176.0,175.97,10.47353075]
[1753990987606,8.7226,176.0,175.98,3.15]
[1753990987804,3.04,176.02,175.97,7.32353075]
[1753990988209,8.7225,176.0,175.98,3.15]
[1753990988405,3.04,176.01,175.98,3.15]
[1753990988606,3.04,175.99,175.97,10.47353075]
[1753990988907,8.7227,175.99,175.97,10.47353075]
[1753990989297,106.54,176.03,175.97,7.32353075]
[1753990989500,3.04,176.02,176.0,3.15]
[1753990990301,3.04,176.04,175.99,7.32353075]
[1753990990603,3.04,176.02,176.01,3.15]
[1753990991307,8.7216,176.03,176.01,3.15]
[1753990991503,8.7212,176.04,176.02,3.15]
[1753990991707,3.04,176.04,176.03,3.15]
[1753990992204,8.7211,176.04,176.03,3.15]
[1753990992405,3.04,176.04,176.03,3.15]
[1753990992604,3.04,176.06,176.03,10.47353075]
[1753990992802,3.04,176.05,176.03,10.47353075]
[1753990993505,3.04,176.05,176.04,3.15]
[1753990993703,3.04,176.07,176.04,3.15]
[1753990993903,3.04,176.07,176.03,7.32353075]
[1753990994105,106.54,176.08,176.03,10.47353075]
[1753990994301,3.04,176.07,175.97,10.47353075]
[1753990994608,7.32353075,176.06,175.97,3.15]
[1753990994815,5.684,175.96,175.93,7.32353075]
[1753990995006,113.82353075,176.02,175.91,7.32353075]
[1753990995206,3.04,175.99,175.91,3.15]
[1753990995404,3.04,175.98,175.91,8.8352]
[1753990995999,3.04,175.94,175.9,7.32353075]
[1753990996205,7.32353075,176.0,175.9,7.32353075]
[1753990996206,7.32353075,176.0,175.91,3.15]